bitfinex/quotes_ETHUSD_20250925
["timestamp","ask_amount","ask_price","bid_price","bid_amount"]
[1758802593151,2.48985384,4016.3,4015.9,0.2476]
[1758802593349,2.9992,4016.2,4015.9,0.2476]
[1758802593552,2.9992,4016.2,4016.0,0.6766]
[1758802593733,2.9992,4016.2,4016.1,0.8006]
[1758802594120,2.9992,4016.2,4016.1,0.124]
[1758802594524,2.9992,4016.2,4016.1,0.8006]
[1758802596323,0.39053341,4016.5,4016.1,0.8006]
[1758802596523,3.0,4016.3,4016.2,0.70149915]
[1758802596922,0.39053341,4016.5,4016.2,0.70149915]
[1758802597126,4.57453341,4016.5,4016.3,0.6766]
[1758802597319,3.0,4016.4,4016.1,0.14889977]
[1758802597624,3.0,4016.4,4015.8,2.49015293]
[1758802597932,3.0,4016.4,4016.3,0.124]
[1758802598121,5.48979185,4016.4,4016.3,0.124]
[1758802598570,6.43359854,4016.4,4016.3,0.124]
[1758802598856,6.43359854,4016.4,4014.1,2.51116461]
[1758802598857,3.0,4016.3,4015.8,0.124]
[1758802599067,2.49010184,4015.9,4015.8,0.124]
[1758802599365,2.49010184,4015.9,4014.9,0.002]
[1758802599366,2.49039381,4015.5,4014.9,0.2496]
[1758802599574,2.49042564,4015.4,4015.0,0.429]
[1758802599776,3.0,4015.4,4015.0,0.429]
[1758802599959,5.49041191,4015.4,4015.3,0.124]
[1758802600268,5.49041191,4015.4,4014.9,0.2496]
[1758802600269,5.49053596,4015.2,4014.9,0.002]
[1758802600471,5.21153596,4015.2,4014.9,0.002]
[1758802600637,12.46453596,4015.2,4014.9,0.002]
[1758802600837,19.95078696,4015.2,4014.9,0.002]
[1758802601033,23.38532247,4015.2,4014.9,0.002]
[1758802601336,23.40333647,4015.2,4014.9,0.002]
[1758802601537,28.92003747,4015.2,4014.9,0.002]
[1758802601766,36.52324647,4015.2,4014.9,0.002]
[1758802602774,34.87448347,4015.2,4014.9,0.002]
[1758802603469,34.25333647,4015.2,4014.9,0.002]
[1758802603768,34.32719347,4015.2,4014.9,0.002]
[1758802604540,33.72913447,4015.2,4014.9,0.002]
[1758802604770,9.87664747,4015.2,4014.9,0.002]
[1758802605076,12.17553596,4015.2,4014.9,0.002]
[1758802605274,6.92719999,4016.2,4015.1,0.7359]
[1758802605569,2.49016783,4015.8,4015.2,0.73880535]
[1758802605759,3.0,4015.6,4015.3,0.7139]
[1758802605959,7.187,4015.6,4015.3,0.7139]
[1758802606159,2.49005905,4016.0,4015.4,0.7139]
[1758802606475,2.49024611,4015.7,4015.4,0.7139]
[1758802606774,3.0,4015.9,4015.5,0.7139]
[1758802607084,3.0,4015.9,4015.6,0.7139]
[1758802607085,4.187,4015.9,4015.6,0.7139]
[1758802607388,3.0,4016.1,4015.7,0.7139]
[1758802607389,6.67716923,4015.8,4015.7,0.7139]
[1758802607688,3.0,4015.8,4015.7,0.7139]
[1758802607899,0.39058143,4016.1,4015.7,0.7139]
[1758802608183,3.39058143,4016.1,4015.8,0.73880163]
[1758802608489,3.39058143,4016.1,4015.9,0.7139]
[1758802608783,3.39058143,4016.1,4016.0,0.7139]
[1758802609092,11.11519999,4016.2,4016.0,0.7139]
[1758802609289,13.60512735,4016.2,4016.0,0.7139]
[1758802609592,9.41712735,4016.2,4016.1,0.7139]
[1758802609799,9.41711583,4016.2,4016.1,0.7139]
[1758802610167,9.41711583,4016.2,4016.1,0.8379]
[1758802610373,6.92719999,4016.2,4016.1,0.8379]
[1758802610596,9.41811583,4016.2,4016.1,0.8379]
[1758802611081,9.41811583,4016.2,4016.1,0.124]
[1758802612090,13.60511583,4016.2,4016.1,0.124]
[1758802612769,11.11419999,4016.2,4016.1,0.124]
[1758802613152,13.60411583,4016.2,4016.1,0.124]
[1758802615269,9.41811583,4016.2,4016.1,0.124]
[1758802615467,6.92819999,4016.2,4016.1,0.8379]
[1758802617000,6.92819999,4016.2,4016.1,3.32787783]
[1758802618888,6.92739999,4016.2,4016.1,3.32787783]
[1758802620699,0.001,4016.2,4016.1,0.8379]
[1758802620908,0.001,4016.2,4016.1,3.32787783]
[1758802622185,0.001,4016.2,4016.1,0.8379]
[1758802622588,0.001,4016.2,4016.1,3.32787783]
[1758802622987,0.001,4016.2,4016.1,3.3527776]
[1758802623197,0.001,4016.2,4016.1,3.32787783]
[1758802623575,0.001,4016.2,4016.1,0.8379]
[1758802624305,0.001,4016.2,4016.1,3.32787783]
[1758802625506,0.001,4016.2,4016.1,0.124]
[1758802625695,0.001,4016.2,4016.1,4.305]
[1758802626501,0.001,4016.2,4016.1,4.9824]
[1758802627005,0.001,4016.2,4016.1,7.47237783]
[1758802628413,0.001,4016.2,4016.1,4.9824]
[1758802629074,0.001,4016.2,4016.1,7.47237783]
[1758802629409,0.001,4016.2,4016.1,4.9824]
[1758802629815,0.001,4016.2,4016.1,7.47237783]
[1758802630017,0.001,4016.2,4016.1,4.9824]
[1758802630413,0.001,4016.2,4016.1,4.305]
[1758802630586,0.001,4016.2,4016.1,4.9824]
[1758802630784,0.001,4016.2,4016.1,7.47237783]
[1758802631185,0.001,4016.2,4016.1,6.79497783]
[1758802631417,0.001,4016.2,4016.1,4.9957]
[1758802632421,0.001,4016.2,4016.1,0.124]
[1758802632599,5.66968294,4016.2,4016.1,0.124]
[1758802632798,6.23665123,4016.2,4016.1,0.124]
[1758802633104,8.72656707,4016.2,4016.1,0.124]
[1758802633731,11.72656707,4016.2,4016.1,0.124]
[1758802634216,9.23665123,4016.2,4016.1,0.124]
[1758802634419,3.2336,4016.2,4016.1,0.124]
[1758802634584,3.001,4016.2,4016.1,0.124]
[1758802635017,3.2336,4016.2,4016.1,0.124]
[1758802635187,5.72351584,4016.2,4016.1,0.124]
[1758802635386,6.15661584,4016.2,4016.1,0.124]
[1758802636116,3.2336,4016.2,4016.1,0.124]
[1758802636916,3.001,4016.2,4016.1,0.124]
[1758802637324,6.52328584,4016.2,4016.1,0.124]
[1758802638397,11.52626878,4016.2,4016.1,0.124]
[1758802638600,2.49022586,4015.7,4015.6,0.002]
[1758802639120,2.72282586,4015.7,4015.6,0.126]
[1758802639321,8.1589088,4015.7,4015.6,0.002]
[1758802639498,9.1414122,4015.7,4015.6,0.002]
[1758802641302,13.3204122,4015.7,4015.6,0.002]
[1758802641497,16.3204122,4015.7,4015.6,0.002]
[1758802641701,45.0572342,4015.7,4015.6,0.002]
[1758802641906,46.3204122,4015.7,4015.6,0.002]
[1758802642432,43.1216412,4015.7,4015.6,0.002]
[1758802642821,46.3204122,4015.7,4015.6,0.002]
[1758802643233,46.3204122,4015.7,4015.1,0.022]
[1758802643234,2.49053596,4015.2,4015.1,0.022]
[1758802643420,18.59891889,4015.2,4015.1,0.022]
[1758802643602,38.06712989,4015.2,4015.1,0.022]
[1758802643932,39.01538889,4015.2,4015.1,0.022]
[1758802644232,38.69371689,4015.2,4015.1,0.022]
[1758802644531,41.08420304,4015.2,4015.1,0.022]
[1758802644954,48.72757104,4015.2,4015.1,0.022]
[1758802645947,51.10241204,4015.2,4015.1,0.022]
[1758802646128,48.95925604,4015.2,4015.1,0.022]
[1758802646949,54.65510504,4015.2,4015.1,0.022]
[1758802647149,55.0458008,4015.2,4015.1,0.022]
[1758802647844,49.1183678,4015.2,4015.1,0.022]
[1758802648147,52.4611318,4015.2,4015.1,0.022]
[1758802648370,51.9871728,4015.2,4015.1,0.022]
[1758802649148,55.0236288,4015.2,4015.1,0.022]
[1758802649346,54.4979408,4015.2,4015.1,0.022]
[1758802649726,49.8295108,4015.2,4015.1,0.022]
[1758802649930,57.1218008,4015.2,4015.1,0.022]
[1758802650328,56.3758198,4015.2,4015.1,0.022]
[1758802650651,53.5261818,4015.2,4015.1,0.022]
[1758802650949,55.4543538,4015.2,4015.1,0.022]
[1758802651520,54.2160278,4015.2,4015.1,0.022]
[1758802651921,27.1218008,4015.2,4015.1,0.022]
[1758802652140,51.1629508,4015.2,4015.1,0.022]
[1758802652545,47.2384558,4015.2,4015.1,0.022]
[1758802652746,45.3699098,4015.2,4015.1,0.022]
[1758802652973,45.3735038,4015.2,4015.1,0.022]
[1758802654098,44.2976228,4015.2,4015.1,0.022]
[1758802655075,2.49066002,4015.0,4014.9,0.002]
[1758802655265,30.63322002,4015.0,4014.9,0.002]
[1758802655464,31.29892002,4015.0,4014.9,0.002]
[1758802655970,30.50498302,4015.0,4014.9,0.002]
[1758802656173,2.49084614,4014.7,4014.6,0.002]
[1758802656345,14.67482908,4014.7,4014.6,0.002]
[1758802656548,45.34052908,4014.7,4014.6,0.002]
[1758802656745,2.49109433,4014.3,4014.2,0.002]
[1758802656975,42.77530532,4014.3,4014.2,0.002]
[1758802657274,49.65548047,4014.3,4014.2,0.002]
[1758802657473,49.65548047,4014.3,4014.1,0.02]
[1758802657474,5.49115639,4014.2,4014.1,0.02]
[1758802657672,5.49115639,4014.2,4012.2,2.492347]
[1758802657673,2.49171504,4013.3,4012.2,2.076]
[1758802657860,25.75429613,4013.2,4013.0,0.3531]
[1758802658070,22.05069913,4013.2,4013.0,0.124]
[1758802658393,4.181,4013.2,4013.1,0.7107]
[1758802658750,9.67277713,4013.2,4013.1,0.7107]
[1758802659254,9.67277713,4013.2,4013.1,0.02]
[1758802659467,9.67277713,4013.2,4013.1,0.7107]
[1758802659880,9.67277713,4013.2,4013.1,0.02]
[1758802660067,10.66033899,4013.2,4013.1,0.02]
[1758802660270,33.32598399,4013.2,4013.1,0.02]
[1758802660475,27.64194599,4013.2,4013.1,0.02]
[1758802660663,28.26539362,4013.2,4013.1,0.02]
[1758802661263,28.59274062,4013.2,4013.1,0.02]
[1758802661585,26.01925362,4013.2,4013.1,0.02]
[1758802661781,21.83825362,4013.2,4013.1,0.02]
[1758802661984,26.01925362,4013.2,4013.1,0.02]
[1758802662290,30.31522662,4013.2,4013.1,0.02]
[1758802662657,30.54872662,4013.2,4013.1,0.02]
[1758802663292,28.00638162,4013.2,4013.1,0.02]
[1758802663696,27.77288162,4013.2,4013.1,0.02]
[1758802663989,23.18547862,4013.2,4013.1,0.02]
[1758802664388,27.77689862,4013.2,4013.1,0.02]
[1758802665163,23.36239862,4013.2,4013.1,0.02]
[1758802665366,17.51545062,4013.2,4013.1,0.02]
[1758802665765,17.06098762,4013.2,4013.1,0.02]
[1758802666394,20.51991762,4013.2,4013.1,0.02]
[1758802667090,18.39562362,4013.2,4013.1,0.02]
[1758802667304,18.39562362,4013.2,4013.1,0.022]
[1758802667504,20.67014762,4013.2,4013.1,0.022]
[1758802667723,24.31712962,4013.2,4013.1,0.022]
[1758802667919,25.94720662,4013.2,4013.1,0.022]
[1758802668218,2.49202551,4012.8,4012.6,0.002]
[1758802668413,36.97014262,4012.7,4012.6,0.002]
[1758802668607,24.43408662,4012.7,4012.6,0.002]
[1758802668828,16.23648862,4012.7,4012.6,0.002]
[1758802669396,34.68474762,4012.7,4012.6,0.002]
[1758802669607,34.68394762,4012.7,4012.6,0.002]
[1758802669788,34.91744762,4012.7,4012.6,0.002]
[1758802670191,41.84384761,4012.7,4012.6,0.002]
[1758802670392,47.03184876,4012.7,4012.6,0.002]
[1758802670722,51.14765381,4012.7,4012.6,0.002]
[1758802671514,6.92639999,4012.7,4012.6,0.8112]
[1758802671922,6.92639999,4012.7,4012.6,3.30334972]
[1758802673136,3.12147856,4013.5,4012.6,3.30334972]
[1758802673137,6.92639999,4014.4,4012.6,0.5825]
[1758802673328,6.92639999,4014.4,4012.6,0.002]
[1758802673329,4.11580505,4012.7,4012.6,0.002]
[1758802673499,5.49159219,4013.5,4012.6,0.002]
[1758802673699,3.0,4013.3,4012.6,0.002]
[1758802673906,4.183,4013.2,4012.7,0.2287]
[1758802674110,4.183,4013.2,4012.7,0.6852]
[1758802674314,4.183,4013.2,4012.8,0.6852]
[1758802674511,4.183,4013.2,4012.9,0.6852]
[1758802674711,4.183,4013.2,4013.0,0.6852]
[1758802675030,4.183,4013.2,4012.6,0.002]
[1758802675031,7.183,4013.2,4013.1,0.6852]
[1758802675536,9.67477713,4013.2,4013.1,0.6852]
[1758802675710,7.183,4013.2,4013.1,0.6852]
[1758802676334,4.11580505,4013.4,4013.1,0.6852]
[1758802676506,4.57282663,4013.6,4013.2,0.02491777]
[1758802676707,3.0,4013.5,4013.3,0.6852]
[1758802677030,9.60740313,4013.5,4013.4,0.2287]
[1758802677333,9.60739593,4013.5,4013.4,0.2287]
[1758802677543,7.11580505,4013.5,4013.4,0.6852]
[1758802678030,9.60739593,4013.5,4013.4,0.6852]
[1758802679809,2.49172122,4013.3,4012.8,0.2287]
[1758802680138,9.60746283,4013.4,4012.9,0.4565]
[1758802680436,2.49172115,4013.3,4013.0,0.6852]
[1758802680640,2.49173226,4013.3,4012.6,0.4585]
[1758802680798,2.49173226,4013.3,4012.8,0.2287]
[1758802681009,11.29880505,4013.4,4012.9,0.6852]
[1758802681201,3.0,4013.4,4013.0,0.71011901]
[1758802681517,7.182,4013.4,4013.1,0.6852]
[1758802681706,7.17,4013.5,4013.2,0.71011777]
[1758802681911,7.17,4013.5,4013.3,0.6973]
[1758802682113,7.17,4013.5,4013.4,0.6973]
[1758802683152,2.49165386,4013.4,4012.8,0.2263]
[1758802683363,4.11580505,4013.2,4012.6,0.002]
[1758802683655,4.11580505,4012.9,4012.6,0.002]
[1758802683871,4.11580505,4012.9,4012.8,0.124]
[1758802684073,6.60776846,4012.9,4012.8,0.124]
[1758802684354,6.60776846,4012.9,4012.6,0.002]
[1758802684355,2.49208762,4012.7,4012.6,0.002]
[1758802684522,6.67508762,4012.7,4012.6,0.002]
[1758802684726,11.24434362,4012.7,4012.6,0.002]
[1758802685577,6.91968762,4012.7,4012.6,0.002]
[1758802685724,11.75146762,4012.7,4012.6,0.002]
[1758802685919,24.78755377,4012.7,4012.6,0.002]
[1758802686152,20.60455377,4012.7,4012.6,0.002]
[1758802686332,10.17,4012.7,4012.6,0.002]
[1758802686537,10.17,4012.7,4012.6,0.8233]
[1758802687534,7.17,4012.7,4012.6,3.31544972]
[1758802689022,7.17,4012.7,4012.6,0.8233]
[1758802689456,7.17,4012.7,4012.6,0.126]
[1758802690227,7.17,4012.7,4012.6,0.3523]
[1758802690434,7.17,4012.7,4012.6,0.8233]
[1758802690748,6.67791257,4013.0,4012.6,0.126]
[1758802690957,24.396083,4012.9,4012.6,0.126]
[1758802691163,4.4255,4012.9,4012.6,0.126]
[1758802691367,2.49208762,4012.7,4012.6,0.126]
[1758802691734,2.73158762,4012.7,4012.6,0.126]
[1758802692134,5.73158762,4012.7,4012.6,0.126]
[1758802692748,3.0,4012.7,4012.6,0.126]
[1758802694066,5.49208762,4012.7,4012.6,0.126]
[1758802694236,6.94859284,4012.7,4012.6,0.126]
[1758802694660,41.60559284,4012.7,4012.6,0.002]
[1758802695149,32.61748584,4012.7,4012.6,0.002]
[1758802695351,16.53589084,4012.7,4012.6,0.002]
[1758802695750,20.26541884,4012.7,4012.6,0.002]
[1758802696638,21.91356784,4012.7,4012.6,0.002]
[1758802697484,21.64058684,4012.7,4012.6,0.002]
[1758802697794,10.89329284,4012.7,4012.6,0.002]
[1758802697955,10.89429284,4012.7,4012.6,0.002]
[1758802698283,11.64401076,4012.7,4012.6,0.002]
[1758802698448,9.84738876,4012.7,4012.6,0.002]
[1758802698654,21.33410376,4012.7,4012.6,0.002]
[1758802698892,21.80610376,4012.7,4012.6,0.002]
[1758802699070,21.33410376,4012.7,4012.6,0.002]
[1758802699260,17.62210376,4012.7,4012.6,0.002]
[1758802699460,9.88536976,4012.7,4012.6,0.002]
[1758802699685,2.9992,4012.7,4012.6,0.002]
[1758802699884,7.1842,4012.7,4012.6,0.002]
[1758802700091,2.9992,4012.7,4012.6,0.8302]
[1758802700752,2.9992,4012.7,4012.6,0.126]
[1758802700950,3.39006114,4012.7,4012.6,0.126]
[1758802705289,2.9992,4012.7,4012.6,0.126]
[1758802706293,3.0002,4012.7,4012.6,0.126]
[1758802706854,10.1702,4012.7,4012.6,0.126]
[1758802710091,12.66228762,4012.7,4012.6,0.126]
[1758802710271,10.1702,4012.7,4012.6,0.126]
[1758802710597,12.66228762,4012.7,4012.6,0.126]
[1758802711063,10.1702,4012.7,4012.6,0.126]
[1758802711796,10.1702,4012.7,4012.6,0.8302]
[1758802712403,12.66228762,4012.7,4012.6,0.3731]
[1758802712608,12.66228762,4012.7,4012.6,0.126]
[1758802712917,17.01611632,4012.7,4012.6,0.126]
[1758802713120,28.35946832,4012.7,4012.6,0.126]
[1758802713904,28.750346,4012.7,4012.6,0.126]
[1758802714109,26.558639,4012.7,4012.6,0.126]
[1758802715106,27.786254,4012.7,4012.6,0.126]
[1758802715809,27.39537632,4012.7,4012.6,0.126]
[1758802716016,21.19911632,4012.7,4012.6,0.126]
[1758802716312,29.84660632,4012.7,4012.6,0.126]
[1758802717184,30.20134932,4012.7,4012.6,0.126]
[1758802718208,30.10695432,4012.7,4012.6,0.126]
[1758802718414,30.10695432,4012.7,4012.6,0.002]
[1758802718415,30.69201422,4012.7,4012.6,0.002]
[1758802718579,31.16401422,4012.7,4012.6,0.002]
[1758802719176,51.93796422,4012.7,4012.6,0.002]
[1758802719607,49.53796422,4012.7,4012.6,0.002]
[1758802720026,49.92886694,4012.7,4012.6,0.002]
[1758802720328,50.87158894,4012.7,4012.6,0.002]
[1758802720518,51.18622894,4012.7,4012.6,0.002]
[1758802720844,39.49488694,4012.7,4012.6,0.002]
[1758802720992,39.91601994,4012.7,4012.6,0.002]
[1758802721187,40.63258094,4012.7,4012.6,0.002]
[1758802721423,40.87761894,4012.7,4012.6,0.002]
[1758802721604,40.87140994,4012.7,4012.6,0.002]
[1758802721799,40.85338594,4012.7,4012.6,0.002]
[1758802722826,44.88314594,4012.7,4012.6,0.002]
[1758802723729,34.78718194,4012.7,4012.6,0.002]
[1758802723950,35.02578194,4012.7,4012.6,0.002]
[1758802724094,35.46898194,4012.7,4012.6,0.002]
[1758802724735,41.51661194,4012.7,4012.6,0.002]
[1758802724950,39.80661194,4012.7,4012.6,0.002]
[1758802725435,36.80598594,4012.7,4012.6,0.002]
[1758802725635,36.36278594,4012.7,4012.6,0.002]
[1758802725927,40.99710594,4012.7,4012.6,0.002]
[1758802726110,38.03128294,4012.7,4012.6,0.002]
[1758802726307,36.57478694,4012.7,4012.6,0.002]
[1758802727021,38.31695394,4012.7,4012.6,0.002]
[1758802727195,38.31615094,4012.7,4012.6,0.002]
[1758802727402,38.84866394,4012.7,4012.6,0.002]
[1758802727602,33.38375594,4012.7,4012.6,0.002]
[1758802727804,38.85245094,4012.7,4012.6,0.002]
[1758802728107,40.20046994,4012.7,4012.6,0.002]
[1758802728307,40.18106994,4012.7,4012.6,0.002]
[1758802728526,42.64589594,4012.7,4012.6,0.002]
[1758802728731,43.08909594,4012.7,4012.6,0.002]
[1758802728930,36.89785594,4012.7,4012.6,0.002]
[1758802729109,36.45465594,4012.7,4012.6,0.002]
[1758802729306,35.06053894,4012.7,4012.6,0.002]
[1758802729506,33.92504494,4012.7,4012.6,0.002]
[1758802729815,33.92504494,4012.7,4012.6,0.6785]
[1758802729816,10.80740272,4012.7,4012.6,0.6785]
[1758802730141,10.1694,4012.7,4012.6,0.6785]
[1758802730543,7.171,4012.7,4012.6,0.6785]
[1758802730837,7.171,4012.7,4012.6,3.19557121]
[1758802731008,7.171,4012.7,4012.6,0.70342149]
[1758802731210,7.171,4012.7,4012.6,0.6785]
[1758802731444,7.171,4012.7,4012.6,3.17064972]
[1758802731643,7.171,4012.7,4012.6,0.6785]
[1758802731805,7.171,4012.7,4012.6,3.19557121]
[1758802732450,7.171,4012.7,4012.6,0.70342149]
[1758802732732,7.171,4012.7,4012.6,0.6785]
[1758802734318,0.001,4012.7,4012.6,3.19557121]
[1758802734804,0.001,4012.7,4012.6,7.37857121]
[1758802735027,0.001,4012.7,4012.6,7.35364972]
[1758802735618,0.001,4012.7,4012.6,3.17064972]
[1758802735918,0.001,4012.7,4012.6,9.45457121]
[1758802736123,0.001,4012.7,4012.6,9.42964972]
[1758802737136,0.001,4012.7,4012.6,7.35264972]
[1758802737353,0.001,4012.7,4012.6,0.6785]
[1758802737639,0.001,4012.7,4012.6,0.2305]
[1758802737839,0.001,4012.7,4012.6,0.6785]
[1758802738231,0.001,4012.7,4012.6,0.002]
[1758802739610,0.001,4012.7,4012.6,3.17064972]
[1758802739806,0.001,4012.7,4012.6,3.19557121]
[1758802740012,0.001,4012.7,4012.6,3.17064972]
[1758802740236,0.001,4012.7,4012.6,3.19557121]
[1758802740446,0.001,4012.7,4012.6,0.6785]
[1758802740623,0.001,4012.7,4012.6,0.002]
[1758802740624,7.4096,4012.7,4012.6,0.002]
[1758802741327,7.171,4012.7,4012.6,0.002]
[1758802741531,7.4096,4012.7,4012.6,0.002]
[1758802742013,17.90740817,4012.7,4012.6,0.002]
[1758802742218,18.35480817,4012.7,4012.6,0.002]
[1758802742427,25.24427317,4012.7,4012.6,0.002]
[1758802742624,33.27107017,4012.7,4012.6,0.002]
[1758802742819,33.36107017,4012.7,4012.6,0.002]
[1758802743144,33.36355017,4012.7,4012.6,0.002]
[1758802743345,40.40826017,4012.7,4012.6,0.002]
[1758802743552,42.30920217,4012.7,4012.6,0.002]
[1758802743743,41.07992034,4012.7,4012.6,0.002]
[1758802743944,41.96002934,4012.7,4012.6,0.002]
[1758802744147,42.39740734,4012.7,4012.6,0.002]
[1758802744348,43.12347634,4012.7,4012.6,0.002]
[1758802744528,41.99969134,4012.7,4012.6,0.002]
[1758802744929,37.20340334,4012.7,4012.6,0.002]
[1758802745130,36.91058023,4012.7,4012.6,0.002]
[1758802745331,36.91704323,4012.7,4012.6,0.002]
[1758802745527,35.52682523,4012.7,4012.6,0.002]
[1758802745731,37.03970423,4012.7,4012.6,0.002]
[1758802745955,38.08252023,4012.7,4012.6,0.002]
[1758802746154,38.10252023,4012.7,4012.6,0.002]
[1758802746566,30.13468428,4012.7,4012.6,0.002]
[1758802746742,30.04224528,4012.7,4012.6,0.002]
[1758802746946,30.04131928,4012.7,4012.6,0.002]
[1758802747147,30.04631928,4012.7,4012.6,0.002]
[1758802748241,32.42842728,4012.7,4012.6,0.002]
[1758802748868,34.50542728,4012.7,4012.6,0.002]
[1758802749245,36.06901928,4012.7,4012.6,0.002]
[1758802749769,36.06901928,4012.7,4012.1,0.02]
[1758802749770,2.49239818,4012.2,4012.1,0.02]
[1758802749986,44.68330855,4012.2,4012.1,0.02]
[1758802750189,44.92970855,4012.2,4012.1,0.02]
[1758802750397,45.32066202,4012.2,4012.1,0.02]
[1758802750852,36.65847702,4012.2,4012.1,0.02]
[1758802751058,38.28869817,4012.2,4012.1,0.02]
[1758802751355,38.28419717,4012.2,4012.1,0.02]
[1758802751882,17.2273188,4012.2,4012.1,0.02]
[1758802752253,24.5827448,4012.2,4012.1,0.02]
[1758802752457,24.8125448,4012.2,4012.1,0.02]
[1758802752659,21.5555838,4012.2,4012.1,0.02]
[1758802753289,24.44551533,4012.2,4012.1,0.02]
[1758802753654,23.24415333,4012.2,4012.1,0.02]
[1758802754286,28.43009833,4012.2,4012.1,0.02]
[1758802754978,26.19407833,4012.2,4012.1,0.02]
[1758802755162,26.26995333,4012.2,4012.1,0.02]
[1758802755763,19.21970333,4012.2,4012.1,0.02]
[1758802755967,18.98990333,4012.2,4012.1,0.02]
[1758802756260,20.24671433,4012.2,4012.1,0.02]
[1758802756460,18.39056909,4012.2,4012.1,0.02]
[1758802757493,26.53682809,4012.2,4012.1,0.02]
[1758802758189,22.81642809,4012.2,4012.1,0.02]
[1758802758395,27.54894309,4012.2,4012.1,0.02]
[1758802759260,30.49689409,4012.2,4012.1,0.02]
[1758802760088,29.27850409,4012.2,4012.1,0.02]
[1758802760295,40.95880609,4012.2,4012.1,0.02]
[1758802760497,40.20828109,4012.2,4012.1,0.02]
[1758802760966,29.82304109,4012.2,4012.1,0.02]
[1758802761296,28.79548709,4012.2,4012.1,0.02]
[1758802761662,28.20304009,4012.2,4012.1,0.02]
[1758802762387,30.30636309,4012.2,4012.1,0.02]
[1758802762586,30.07432509,4012.2,4012.1,0.02]
[1758802763007,30.30412509,4012.2,4012.1,0.022]
[1758802763397,27.29314109,4012.2,4012.1,0.022]
[1758802764481,27.22581509,4012.2,4012.1,0.022]
[1758802765093,24.76304809,4012.2,4012.1,0.022]
[1758802765427,26.19437209,4012.2,4012.1,0.022]
[1758802766219,25.59340609,4012.2,4012.1,0.022]
[1758802766422,26.07719409,4012.2,4012.1,0.022]
[1758802766620,25.78769409,4012.2,4012.1,0.022]
[1758802767186,21.60469409,4012.2,4012.1,0.022]
[1758802767527,29.20039409,4012.2,4012.1,0.022]
[1758802767913,15.50586476,4012.2,4012.1,0.7091]
[1758802768230,7.8311,4012.2,4012.1,0.7091]
[1758802768430,0.001,4012.6,4012.1,0.7091]
[1758802768726,0.001,4012.6,4012.2,0.6871]
[1758802769234,0.001,4012.6,4012.1,2.51441806]
[1758802769525,0.001,4012.6,4012.3,0.6871]
[1758802770050,0.001,4012.6,4012.1,0.022]
[1758802770051,2.49221221,4012.5,4012.1,0.022]
[1758802770195,2.49221221,4012.5,4012.3,0.2414]
[1758802770398,4.182,4012.5,4012.1,0.022]
[1758802770632,4.182,4012.5,4012.4,0.2414]
[1758802770633,7.182,4012.5,4012.4,0.2414]
[1758802770929,3.0,4012.5,4012.4,0.6871]
[1758802771150,7.182,4012.5,4012.4,0.6871]
[1758802771427,7.1812,4012.5,4012.4,0.6871]
[1758802772769,2.9992,4012.5,4012.4,0.6871]
[1758802773254,10.1692,4012.5,4012.4,0.6871]
[1758802774057,10.1692,4012.5,4012.4,3.17937395]
[1758802774639,10.1692,4012.5,4012.4,0.6871]
[1758802775169,10.1692,4012.5,4012.4,3.17937395]
[1758802775170,10.17,4012.5,4012.4,3.17937395]
[1758802775940,3.0,4012.5,4012.4,3.17937395]
[1758802778132,3.0,4012.5,4012.4,3.30337395]
[1758802779264,3.0,4012.5,4012.4,0.8111]
[1758802780003,3.0,4012.5,4012.4,3.30337395]
[1758802780285,3.0,4012.5,4012.4,3.32829668]
[1758802780671,0.001,4012.6,4012.5,2.49221183]
[1758802780882,0.001,4012.6,4012.5,3.16551183]
[1758802783684,0.001,4012.6,4012.5,4.6247]
[1758802783894,0.001,4012.6,4012.5,4.181]
[1758802784075,0.001,4012.6,4012.5,4.211]
[1758802784276,0.001,4012.6,4012.5,0.03]
[1758802785388,0.001,4012.6,4012.5,2.52221183]
[1758802785554,0.001,4012.6,4012.5,0.03]
[1758802785758,0.001,4012.6,4012.5,2.52221183]
[1758802785957,0.001,4012.6,4012.5,3.19551183]
[1758802787394,0.001,4012.6,4012.5,0.03]
[1758802788198,0.2322,4012.6,4012.5,0.03]
[1758802788619,0.001,4012.6,4012.5,0.03]
[1758802789924,0.001,4012.6,4012.5,2.54713394]
[1758802790715,0.001,4012.6,4012.5,3.22043394]
[1758802791079,0.001,4012.6,4012.5,0.72822211]
[1758802792220,0.001,4012.6,4012.5,0.03]
[1758802792719,18.05770921,4012.6,4012.5,0.03]
[1758802792924,26.97969021,4012.6,4012.5,0.03]
[1758802793124,33.26859421,4012.6,4012.5,0.03]
[1758802793985,34.15934521,4012.6,4012.5,0.03]
[1758802794221,2.39128615,4012.5,4010.6,0.2296]
[1758802794373,4.11367886,4011.2,4010.7,4.181]
[1758802795000,0.2312,4011.2,4010.7,4.181]
[1758802795437,2.72421954,4011.2,4010.7,4.181]
[1758802795733,2.72421954,4011.2,4010.8,4.181]
[1758802795935,0.6946,4011.2,4010.4,0.2296]
[1758802796415,0.6946,4011.2,4010.6,1.822]
[1758802796817,0.6938,4011.2,4010.6,1.822]
[1758802797138,37.17233769,4011.2,4010.1,4.201]
[1758802797340,33.94445054,4011.2,4010.1,0.02]